Workbook

Sheet Wöchentliche Vertriebsaktivität
B1: WÖCHENTLICHE VERTRIEBSAKTIVITÄT | I1: VERKÄUFER | J1: Name | L1: WOCHE BIS: | M1: Datum
I3: ORT | J3: Ort | L3: HEUTIGES DATUM | M3: Datum
B5: TAGE | C5: IM VERTRIEBSBÜRO | D5: AUSSERHALB DES BÜROS | E5: BESUCHE IM BÜRO | F5: EXTERNE ANRUFE | G5: DATEI-TELEFONANRUFE | H5: NEUKUNDE TELEFON | I5: GÄSTEZIMMER | J5: SPEISEN UND GETRÄNKE | K5: BESPR.- RAUMMIETE | L5: SONSTIGES* | M5: ERGEBNIS
B6: Montag | C6: 14.00 € | D6: 23.00 € | E6: 4.00 € | F6: 45.00 € | G6: 22.00 € | H6: 2.00 € | I6: 100.00 € | J6: 0.00 € | K6: 0.00 € | L6: 0.00 € | M6: =SUM(Aktivität[[#This Row],[IM VERTRIEBSBÜRO]:[SONSTIGES*]]) -> 210.00 €
B7: Dienstag | C7: 23.00 € | D7: 76.00 € | E7: 10.00 € | F7: 50.00 € | G7: 54.00 € | H7: 45.00 € | I7: 80.00 € | J7: 0.00 € | K7: 0.00 € | L7: 0.00 € | M7: =SUM(Aktivität[[#This Row],[IM VERTRIEBSBÜRO]:[SONSTIGES*]]) -> 338.00 €
B8: Mittwoch | C8: 4.00 € | D8: 130.00 € | E8: 11.00 € | F8: 33.00 € | G8: 67.00 € | H8: 65.00 € | I8: 400.00 € | J8: 0.00 € | K8: 0.00 € | L8: 0.00 € | M8: =SUM(Aktivität[[#This Row],[IM VERTRIEBSBÜRO]:[SONSTIGES*]]) -> 710.00 €
B9: Donnerstag | C9: 102.00 € | D9: 40.00 € | E9: 18.00 € | F9: 0.00 € | G9: 86.00 € | H9: 82.00 € | I9: 97.00 € | J9: 0.00 € | K9: 0.00 € | L9: 0.00 € | M9: =SUM(Aktivität[[#This Row],[IM VERTRIEBSBÜRO]:[SONSTIGES*]]) -> 425.00 €
B10: Freitag | C10: 33.00 € | D10: 55.00 € | E10: 22.00 € | F10: 49.00 € | G10: 143.00 € | H10: 26.00 € | I10: 50.00 € | J10: 0.00 € | K10: 0.00 € | L10: 0.00 € | M10: =SUM(Aktivität[[#This Row],[IM VERTRIEBSBÜRO]:[SONSTIGES*]]) -> 378.00 €
B11: Samstag | C11: 0.00 € | D11: 0.00 € | E11: 0.00 € | F11: 0.00 € | G11: 0.00 € | H11: 0.00 € | I11: 0.00 € | J11: 0.00 € | K11: 0.00 € | L11: 0.00 € | M11: =SUM(Aktivität[[#This Row],[IM VERTRIEBSBÜRO]:[SONSTIGES*]]) -> 0.00 €
B12: Sonntag | C12: 0.00 € | D12: 0.00 € | E12: 0.00 € | F12: 0.00 € | G12: 0.00 € | H12: 0.00 € | I12: 0.00 € | J12: 0.00 € | K12: 0.00 € | L12: 0.00 € | M12: =SUM(Aktivität[[#This Row],[IM VERTRIEBSBÜRO]:[SONSTIGES*]]) -> 0.00 €
B13: Summen | C13: =SUBTOTAL(109,Aktivität[IM VERTRIEBSBÜRO]) -> 176.00 € | D13: =SUBTOTAL(109,Aktivität[AUSSERHALB DES BÜROS]) -> 324.00 € | E13: =SUBTOTAL(109,Aktivität[BESUCHE IM BÜRO]) -> 65.00 € | F13: =SUBTOTAL(109,Aktivität[EXTERNE ANRUFE]) -> 177.00 € | G13: =SUBTOTAL(109,Aktivität[DATEI-TELEFONANRUFE]) -> 372.00 € | H13: =SUBTOTAL(109,Aktivität[NEUKUNDE TELEFON]) -> 220.00 € | I13: =SUBTOTAL(105,Aktivität[GÄSTEZIMMER]) -> 0.00 € | J13: =SUBTOTAL(109,Aktivität[SPEISEN UND GETRÄNKE]) -> 0.00 € | K13: =SUBTOTAL(109,Aktivität[BESPR.- RAUMMIETE]) -> 0.00 € | L13: =SUBTOTAL(109,Aktivität[SONSTIGES*]) -> 0.00 € | M13: =SUBTOTAL(109,Aktivität[ERGEBNIS]) -> 2,061.00 €
B15: ZIEL | C15: 200.00 € | D15: 400.00 € | E15: 300.00 € | F15: 65.00 € | G15: 500.00 € | H15: 300.00 € | I15: 400.00 € | J15: 600.00 € | K15: 300.00 € | L15: 300.00 € | M15: =SUM(C15:L15) -> 3,365.00 €
B16: ABWEICHUNG | C16: =SUM(Aktivität[[#Totals],[IM VERTRIEBSBÜRO]]-C15) -> -24.00 € | D16: =SUM(Aktivität[[#Totals],[AUSSERHALB DES BÜROS]]-D15) -> -76.00 € | E16: =SUM(Aktivität[[#Totals],[BESUCHE IM BÜRO]]-E15) -> -235.00 € | F16: =SUM(Aktivität[[#Totals],[BESUCHE IM BÜRO]]-F15) -> 0.00 € | G16: =SUM(Aktivität[[#Totals],[DATEI-TELEFONANRUFE]]-G15) -> -128.00 € | H16: =SUM(Aktivität[[#Totals],[NEUKUNDE TELEFON]]-H15) -> -80.00 € | I16: =SUM(Aktivität[[#Totals],[GÄSTEZIMMER]]-I15) -> -400.00 € | J16: =SUM(Aktivität[[#Totals],[SPEISEN UND GETRÄNKE]]-J15) -> -600.00 € | K16: =SUM(Aktivität[[#Totals],[BESPR.- RAUMMIETE]]-K15) -> -300.00 € | L16: =SUM(Aktivität[[#Totals],[SONSTIGES*]]-L15) -> -300.00 € | M16: =SUM(C16:L16) -> -2,143.00 €
B18: *ERLÄUTERUNG
B20: Genehmigung
